[Event "*** Titled Tuesday Blitz"]
[Site "Chess.com"]
[Date "2020.05.19"]
[Round "7"]
[White "GMStefanova"]
[Black "gvanna"]
[Result "1-0"]
[WhiteElo "2640"]
[BlackElo "2465"]
[TimeControl "180+1"]
[EndTime "13:20:32 PDT"]
[Termination "GMStefanova won by resignation"]

1. d4 {[%clk 0:03:00.9]} 1... d5 {[%clk 0:02:59.6]} 2. Nf3 {[%clk 0:03:00.4]}
2... Nf6 {[%clk 0:02:59.5]} 3. Bf4 {[%clk 0:03:00.5]} 3... Nh5 {[%clk
0:02:58.8]} 4. Bd2 {[%clk 0:02:57.1]} 4... e6 {[%clk 0:02:56.8]} 5. e3 {[%clk
0:02:56.4]} 5... Bd6 {[%clk 0:02:56]} 6. Ne5 {[%clk 0:02:56]} 6... Nf6 {[%clk
0:02:52.4]} 7. c4 {[%clk 0:02:54.6]} 7... c6 {[%clk 0:02:51.4]} 8. Nc3 {[%clk
0:02:53.5]} 8... Nbd7 {[%clk 0:02:50.8]} 9. f4 {[%clk 0:02:53.5]} 9... Ne4
{[%clk 0:02:50.1]} 10. Nxe4 {[%clk 0:02:50.3]} 10... dxe4 {[%clk 0:02:49.9]} 11.
Qg4 {[%clk 0:02:43.3]} 11... O-O {[%clk 0:02:30.9]} 12. Be2 {[%clk 0:02:39.2]}
12... f5 {[%clk 0:02:30]} 13. Qh3 {[%clk 0:02:37.5]} 13... c5 {[%clk 0:02:18]}
14. O-O-O {[%clk 0:02:33.3]} 14... Qe7 {[%clk 0:02:05.4]} 15. g4 {[%clk
0:02:28.5]} 15... Nxe5 {[%clk 0:01:58]} 16. dxe5 {[%clk 0:02:24.7]} 16... Bc7
{[%clk 0:01:53.2]} 17. Rhg1 {[%clk 0:02:23.3]} 17... Bd7 {[%clk 0:01:45.4]} 18.
Be1 {[%clk 0:02:19]} 18... Kh8 {[%clk 0:01:30.6]} 19. Bh4 {[%clk 0:02:08.6]}
19... Qf7 {[%clk 0:01:29.2]} 20. gxf5 {[%clk 0:02:06.8]} 20... exf5 {[%clk
0:01:26.1]} 21. Kb1 {[%clk 0:01:34.4]} 21... Be6 {[%clk 0:01:25.1]} 22. Rc1
{[%clk 0:01:27.1]} 22... Bd8 {[%clk 0:01:18.4]} 23. Rg2 {[%clk 0:01:20.9]} 23...
Bxh4 {[%clk 0:01:11.9]} 24. Qxh4 {[%clk 0:01:20.6]} 24... Rg8 {[%clk 0:01:00.4]}
25. Bh5 {[%clk 0:01:18.9]} 25... g6 {[%clk 0:00:54.6]} 26. Be2 {[%clk 0:01:17]}
26... Rad8 {[%clk 0:00:50.7]} 27. Qe1 {[%clk 0:01:12.7]} 27... a6 {[%clk
0:00:46.6]} 28. h4 {[%clk 0:01:11.9]} 28... Qe7 {[%clk 0:00:40.9]} 29. h5 {[%clk
0:01:11]} 29... g5 {[%clk 0:00:40.8]} 30. fxg5 {[%clk 0:01:08.9]} 30... Rxg5
{[%clk 0:00:40.4]} 31. Qh4 {[%clk 0:01:07.5]} 31... h6 {[%clk 0:00:39.3]} 32.
Rgg1 {[%clk 0:00:54]} 32... Qg7 {[%clk 0:00:35.9]} 33. Rgd1 {[%clk 0:00:52.6]}
33... Rxd1 {[%clk 0:00:35]} 34. Rxd1 {[%clk 0:00:52.2]} 34... Qxe5 {[%clk
0:00:35.2]} 35. Rd8+ {[%clk 0:00:49.6]} 35... Kg7 {[%clk 0:00:35.4]} 36. Qe1
{[%clk 0:00:48.1]} 36... Rg2 {[%clk 0:00:34]} 37. a3 {[%clk 0:00:35.9]} 37...
Kf7 {[%clk 0:00:32.4]} 38. Ra8 {[%clk 0:00:24.2]} 38... Bxc4 {[%clk 0:00:32.4]}
39. Bxc4+ {[%clk 0:00:22.1]} 39... Kg7 {[%clk 0:00:22.2]} 40. Rg8+ {[%clk
0:00:21]} 40... Kh7 {[%clk 0:00:19.7]} 41. Rxg2 {[%clk 0:00:20.8]} 41... b5
{[%clk 0:00:18.9]} 42. Bg8+ {[%clk 0:00:19.2]} 42... Kh8 {[%clk 0:00:18.6]} 43.
Qc3 {[%clk 0:00:18.8]} 43... Qxc3 {[%clk 0:00:18.4]} 44. bxc3 {[%clk 0:00:19]}
1-0

[Event "*** Titled Tuesday Blitz"]
[Site "Chess.com"]
[Date "2020.05.19"]
[Round "7"]
[White "Shuvalov"]
[Black "lili_ani"]
[Result "1-0"]
[WhiteElo "2430"]
[BlackElo "2557"]
[TimeControl "180+1"]
[EndTime "13:20:32 PDT"]
[Termination "Shuvalov won by checkmate"]

1. Nf3 {[%clk 0:03:00.9]} 1... c5 {[%clk 0:02:58.5]} 2. c4 {[%clk 0:03:00.5]}
2... Nc6 {[%clk 0:02:57.2]} 3. d4 {[%clk 0:03:00]} 3... cxd4 {[%clk 0:02:56.2]}
4. Nxd4 {[%clk 0:03:00.9]} 4... g6 {[%clk 0:02:54.3]} 5. e4 {[%clk 0:03:00.4]}
5... Bg7 {[%clk 0:02:54]} 6. Be3 {[%clk 0:03:00.7]} 6... d6 {[%clk 0:02:52.1]}
7. Nc3 {[%clk 0:03:00.8]} 7... Nf6 {[%clk 0:02:52.1]} 8. Be2 {[%clk 0:03:00.6]}
8... O-O {[%clk 0:02:48]} 9. O-O {[%clk 0:03:00.6]} 9... Bd7 {[%clk 0:02:33.3]}
10. f3 {[%clk 0:03:00.2]} 10... a6 {[%clk 0:02:31.5]} 11. Rc1 {[%clk 0:02:58.9]}
11... Rb8 {[%clk 0:02:29.2]} 12. Qd2 {[%clk 0:02:51.1]} 12... b5 {[%clk
0:02:17.2]} 13. Rfd1 {[%clk 0:02:22.5]} 13... Nxd4 {[%clk 0:01:21.2]} 14. Bxd4
{[%clk 0:02:20.3]} 14... bxc4 {[%clk 0:01:01.2]} 15. Bxc4 {[%clk 0:02:21.2]}
15... a5 {[%clk 0:01:01.6]} 16. e5 {[%clk 0:02:01]} 16... dxe5 {[%clk
0:00:53.2]} 17. Bxe5 {[%clk 0:02:01.1]} 17... Rb4 {[%clk 0:00:53.5]} 18. b3
{[%clk 0:01:38.7]} 18... Rb7 {[%clk 0:00:44.6]} 19. Kh1 {[%clk 0:00:57.4]} 19...
Qe8 {[%clk 0:00:28.9]} 20. a4 {[%clk 0:00:39.3]} 20... Bc6 {[%clk 0:00:27.3]}
21. Nb5 {[%clk 0:00:34.7]} 21... Ne4 {[%clk 0:00:24.7]} 22. fxe4 {[%clk
0:00:28.3]} 22... Bxe5 {[%clk 0:00:25.2]} 23. Qxa5 {[%clk 0:00:26.1]} 23... Bxe4
{[%clk 0:00:24.1]} 24. Re1 {[%clk 0:00:24.9]} 24... Qc6 {[%clk 0:00:22.8]} 25.
Bxf7+ {[%clk 0:00:23.4]} 25... Rxf7 {[%clk 0:00:20.1]} 26. Rxc6 {[%clk
0:00:23.5]} 26... Bxc6 {[%clk 0:00:19.4]} 27. Qd8+ {[%clk 0:00:20]} 27... Rf8
{[%clk 0:00:18.1]} 28. Qd1 {[%clk 0:00:19.2]} 28... Bxb5 {[%clk 0:00:17.4]} 29.
Qd5+ {[%clk 0:00:17.6]} 29... Rf7 {[%clk 0:00:14.7]} 30. Qxb7 {[%clk 0:00:16.8]}
30... Bc3 {[%clk 0:00:12.3]} 31. Qc8+ {[%clk 0:00:15.1]} 31... Rf8 {[%clk
0:00:09.7]} 32. Qxc3 {[%clk 0:00:15]} 32... Ba6 {[%clk 0:00:10.1]} 33. b4 {[%clk
0:00:14.1]} 33... Bb7 {[%clk 0:00:10]} 34. Qc4+ {[%clk 0:00:12.1]} 34... Kh8
{[%clk 0:00:10]} 35. h3 {[%clk 0:00:11.5]} 35... e5 {[%clk 0:00:08.4]} 36. Rxe5
{[%clk 0:00:11]} 36... Bc8 {[%clk 0:00:08.6]} 37. Re7 {[%clk 0:00:10.8]} 37...
Bf5 {[%clk 0:00:08.5]} 38. Qd4+ {[%clk 0:00:10.9]} 38... Kg8 {[%clk 0:00:09.1]}
39. Qg7# {[%clk 0:00:10.9]} 1-0

[Event "*** Titled Tuesday Blitz"]
[Site "Chess.com"]
[Date "2020.05.19"]
[Round "7"]
[White "sopo-tereladze"]
[Black "Gandrade2"]
[Result "1-0"]
[WhiteElo "2316"]
[BlackElo "2044"]
[TimeControl "180+1"]
[EndTime "13:20:32 PDT"]
[Termination "sopo-tereladze won by resignation"]

1. d4 {[%clk 0:03:00.9]} 1... d5 {[%clk 0:02:58.8]} 2. Nf3 {[%clk 0:03:00]} 2...
Nf6 {[%clk 0:02:58.6]} 3. Bf4 {[%clk 0:02:58.9]} 3... c5 {[%clk 0:02:58.9]} 4.
e3 {[%clk 0:02:59.8]} 4... Nc6 {[%clk 0:02:58.5]} 5. c3 {[%clk 0:02:59.9]} 5...
Qb6 {[%clk 0:02:59]} 6. Qb3 {[%clk 0:02:59.5]} 6... c4 {[%clk 0:02:59.5]} 7.
Qxb6 {[%clk 0:02:58.1]} 7... axb6 {[%clk 0:03:00.4]} 8. Na3 {[%clk 0:02:52.1]}
8... Ra5 {[%clk 0:02:55.3]} 9. Bc7 {[%clk 0:02:49.1]} 9... Ra6 {[%clk
0:02:50.2]} 10. Nb5 {[%clk 0:02:39.9]} 10... Bf5 {[%clk 0:02:23.1]} 11. Be2
{[%clk 0:02:32.3]} 11... Kd7 {[%clk 0:02:16]} 12. Ne5+ {[%clk 0:02:19.4]} 12...
Nxe5 {[%clk 0:02:10.5]} 13. Bxe5 {[%clk 0:02:20.3]} 13... e6 {[%clk 0:01:57.8]}
14. O-O {[%clk 0:02:16.1]} 14... Ne4 {[%clk 0:01:57]} 15. f3 {[%clk 0:02:06.3]}
15... Nf6 {[%clk 0:01:44.5]} 16. e4 {[%clk 0:01:57.2]} 16... Bg6 {[%clk
0:01:39.6]} 17. exd5 {[%clk 0:01:25.7]} 17... exd5 {[%clk 0:01:40.5]} 18. b3
{[%clk 0:01:25]} 18... cxb3 {[%clk 0:01:26.6]} 19. axb3 {[%clk 0:01:25.9]} 19...
Ra5 {[%clk 0:01:18.3]} 20. b4 {[%clk 0:01:19.3]} 20... Rxa1 {[%clk 0:01:13.8]}
21. Rxa1 {[%clk 0:01:20.2]} 21... Be7 {[%clk 0:01:14.5]} 22. Kf2 {[%clk
0:01:03.9]} 22... Rc8 {[%clk 0:01:04.5]} 23. Ra3 {[%clk 0:00:58.7]} 23... Ne8
{[%clk 0:01:01.8]} 24. Na7 {[%clk 0:00:57.3]} 24... Rd8 {[%clk 0:00:55.2]} 25.
Bb5+ {[%clk 0:00:53.8]} 25... Ke6 {[%clk 0:00:54.2]} 26. g4 {[%clk 0:00:47.6]}
26... Nd6 {[%clk 0:00:54.2]} 27. f4 {[%clk 0:00:39.9]} 27... f5 {[%clk
0:00:45.7]} 28. g5 {[%clk 0:00:37.8]} 28... Ne4+ {[%clk 0:00:41.9]} 29. Ke3
{[%clk 0:00:35.6]} 29... Bd6 {[%clk 0:00:42.1]} 30. Bd3 {[%clk 0:00:31.6]} 30...
Ra8 {[%clk 0:00:24.2]} 31. Bxe4 {[%clk 0:00:27.6]} 31... fxe4 {[%clk 0:00:23.3]}
32. Bxd6 {[%clk 0:00:26.6]} 32... Kxd6 {[%clk 0:00:23.5]} 33. Nb5+ {[%clk
0:00:26]} 33... Kc6 {[%clk 0:00:23.2]} 34. Rxa8 {[%clk 0:00:26.9]} 34... Kxb5
{[%clk 0:00:23.7]} 35. Rg8 {[%clk 0:00:25.5]} 35... Kc4 {[%clk 0:00:21.4]} 36.
Rxg7 {[%clk 0:00:26.4]} 36... Kxc3 {[%clk 0:00:21.9]} 37. Rxb7 {[%clk
0:00:25.7]} 37... Kxb4 {[%clk 0:00:21.6]} 38. Rxb6+ {[%clk 0:00:25.4]} 38... Ka5
{[%clk 0:00:21.8]} 39. Rd6 {[%clk 0:00:24.7]} 39... Bf7 {[%clk 0:00:20.6]} 40.
f5 {[%clk 0:00:24.2]} 40... Kb5 {[%clk 0:00:19.9]} 41. g6 {[%clk 0:00:24]} 41...
hxg6 {[%clk 0:00:20.4]} 42. fxg6 {[%clk 0:00:24.9]} 42... Bg8 {[%clk 0:00:21.1]}
43. Rd8 {[%clk 0:00:23.6]} 43... Be6 {[%clk 0:00:19.9]} 44. g7 {[%clk
0:00:24.5]} 44... Kc4 {[%clk 0:00:19.9]} 45. g8=Q {[%clk 0:00:25.4]} 45... Bxg8
{[%clk 0:00:20.5]} 46. Rxg8 {[%clk 0:00:25.3]} 1-0

[Event "*** Titled Tuesday Blitz"]
[Site "Chess.com"]
[Date "2020.05.19"]
[Round "7"]
[White "bmt011"]
[Black "Emolas-2020"]
[Result "0-1"]
[WhiteElo "2053"]
[BlackElo "2318"]
[TimeControl "180+1"]
[EndTime "13:20:33 PDT"]
[Termination "Emolas-2020 won on time"]

1. d4 {[%clk 0:03:00.9]} 1... g6 {[%clk 0:02:58.6]} 2. Bf4 {[%clk 0:02:59.9]}
2... Bg7 {[%clk 0:02:58.4]} 3. e3 {[%clk 0:02:57.9]} 3... d6 {[%clk 0:02:58]} 4.
Nf3 {[%clk 0:02:56.4]} 4... Nd7 {[%clk 0:02:58.1]} 5. h3 {[%clk 0:02:52.6]} 5...
e5 {[%clk 0:02:56]} 6. Bh2 {[%clk 0:02:48.3]} 6... e4 {[%clk 0:02:56]} 7. Nfd2
{[%clk 0:02:47.7]} 7... f5 {[%clk 0:02:56.3]} 8. Be2 {[%clk 0:02:47.4]} 8...
Ngf6 {[%clk 0:02:55.8]} 9. c4 {[%clk 0:02:47.5]} 9... O-O {[%clk 0:02:55.7]} 10.
Nc3 {[%clk 0:02:47.7]} 10... Kh8 {[%clk 0:02:46.7]} 11. b4 {[%clk 0:02:44.3]}
11... Qe7 {[%clk 0:02:40.8]} 12. c5 {[%clk 0:02:42.2]} 12... g5 {[%clk
0:02:34.7]} 13. h4 {[%clk 0:02:22.7]} 13... g4 {[%clk 0:02:25.8]} 14. cxd6
{[%clk 0:02:00.3]} 14... cxd6 {[%clk 0:02:26.7]} 15. Nb5 {[%clk 0:02:00.3]}
15... Ne8 {[%clk 0:02:15.1]} 16. Rc1 {[%clk 0:02:00.7]} 16... Nb6 {[%clk
0:02:07.4]} 17. Qc2 {[%clk 0:01:52]} 17... Nd5 {[%clk 0:02:02.7]} 18. Qb3 {[%clk
0:01:39.4]} 18... Ndc7 {[%clk 0:01:38.5]} 19. Nxc7 {[%clk 0:01:01]} 19... Nxc7
{[%clk 0:01:39.4]} 20. Nc4 {[%clk 0:01:01.4]} 20... Ne8 {[%clk 0:01:34.8]} 21.
b5 {[%clk 0:00:54.3]} 21... Be6 {[%clk 0:01:32.4]} 22. Qa3 {[%clk 0:00:53.7]}
22... Bxc4 {[%clk 0:01:30.8]} 23. Rxc4 {[%clk 0:00:45.4]} 23... Qxh4 {[%clk
0:01:27.8]} 24. O-O {[%clk 0:00:42.4]} 24... Qe7 {[%clk 0:01:20.9]} 25. Rfc1
{[%clk 0:00:40.8]} 25... Qd7 {[%clk 0:01:14.3]} 26. b6 {[%clk 0:00:33.7]} 26...
a6 {[%clk 0:01:08]} 27. Rc7 {[%clk 0:00:32.4]} 27... Nxc7 {[%clk 0:01:07.5]} 28.
Rxc7 {[%clk 0:00:32.9]} 28... Qe6 {[%clk 0:00:59.5]} 29. Bxd6 {[%clk 0:00:23.4]}
29... Rfd8 {[%clk 0:00:48.7]} 30. Bc5 {[%clk 0:00:20.7]} 30... Rac8 {[%clk
0:00:44.4]} 31. Rxb7 {[%clk 0:00:20.4]} 31... g3 {[%clk 0:00:20.9]} 32. Qxa6
{[%clk 0:00:17.7]} 32... gxf2+ {[%clk 0:00:20.3]} 33. Kxf2 {[%clk 0:00:18.1]}
33... f4 {[%clk 0:00:19.5]} 34. Qa7 {[%clk 0:00:14.4]} 34... fxe3+ {[%clk
0:00:17.3]} 35. Kg1 {[%clk 0:00:14.3]} 35... Qf6 {[%clk 0:00:14.5]} 0-1

[Event "*** Titled Tuesday Blitz"]
[Site "Chess.com"]
[Date "2020.05.19"]
[Round "7"]
[White "2nd_life"]
[Black "Kobalia"]
[Result "1/2-1/2"]
[WhiteElo "2465"]
[BlackElo "2796"]
[TimeControl "180+1"]
[EndTime "13:20:34 PDT"]
[Termination "Game drawn by repetition"]

1. e4 {[%clk 0:03:00.9]} 1... c6 {[%clk 0:02:54]} 2. d4 {[%clk 0:03:00.4]} 2...
d5 {[%clk 0:02:54.1]} 3. e5 {[%clk 0:03:00.5]} 3... Bf5 {[%clk 0:02:53.7]} 4. h4
{[%clk 0:03:00]} 4... h5 {[%clk 0:02:53.4]} 5. Bd3 {[%clk 0:02:59.8]} 5... Bxd3
{[%clk 0:02:53.5]} 6. Qxd3 {[%clk 0:02:59.9]} 6... Qa5+ {[%clk 0:02:52.5]} 7.
Nd2 {[%clk 0:02:45.5]} 7... e6 {[%clk 0:02:51.3]} 8. Nf3 {[%clk 0:02:36.9]} 8...
Nh6 {[%clk 0:02:50.6]} 9. O-O {[%clk 0:02:33.2]} 9... Nf5 {[%clk 0:02:50.5]} 10.
c4 {[%clk 0:02:22.5]} 10... Qa6 {[%clk 0:02:47.4]} 11. b3 {[%clk 0:02:12.4]}
11... Be7 {[%clk 0:02:46]} 12. g3 {[%clk 0:02:11.4]} 12... O-O {[%clk
0:02:45.8]} 13. Qc3 {[%clk 0:01:46]} 13... Nd7 {[%clk 0:02:01.7]} 14. a4 {[%clk
0:01:40.2]} 14... Qb6 {[%clk 0:01:37]} 15. Ba3 {[%clk 0:01:21.5]} 15... Bxa3
{[%clk 0:01:36.2]} 16. Rxa3 {[%clk 0:01:21.2]} 16... a5 {[%clk 0:01:36.5]} 17.
Ra2 {[%clk 0:01:11.9]} 17... Rfc8 {[%clk 0:01:32.1]} 18. Qd3 {[%clk 0:01:08]}
18... Rd8 {[%clk 0:01:25.7]} 19. cxd5 {[%clk 0:01:02.9]} 19... cxd5 {[%clk
0:01:23.9]} 20. Rc2 {[%clk 0:01:00.5]} 20... Rdc8 {[%clk 0:01:23.6]} 21. Rfc1
{[%clk 0:00:59.9]} 21... Rc6 {[%clk 0:01:20.9]} 22. Qb5 {[%clk 0:00:46.7]} 22...
Qxb5 {[%clk 0:01:11.6]} 23. axb5 {[%clk 0:00:46.6]} 23... Rxc2 {[%clk
0:01:11.8]} 24. Rxc2 {[%clk 0:00:46.2]} 24... a4 {[%clk 0:01:11.9]} 25. Ra2
{[%clk 0:00:39.2]} 25... Nb6 {[%clk 0:00:56.3]} 26. Kf1 {[%clk 0:00:38.9]} 26...
f6 {[%clk 0:00:46.2]} 27. Ke2 {[%clk 0:00:33.8]} 27... Ra5 {[%clk 0:00:39.5]}
28. bxa4 {[%clk 0:00:31.1]} 28... Nxa4 {[%clk 0:00:39.6]} 29. Kf1 {[%clk
0:00:24.4]} 29... b6 {[%clk 0:00:38.9]} 30. exf6 {[%clk 0:00:19.1]} 30... gxf6
{[%clk 0:00:38.4]} 31. Ke1 {[%clk 0:00:15.4]} 31... Kf7 {[%clk 0:00:37.7]} 32.
Rc2 {[%clk 0:00:13.8]} 32... Rxb5 {[%clk 0:00:36.6]} 33. Rc7+ {[%clk 0:00:13.8]}
33... Kg6 {[%clk 0:00:33.9]} 34. Rc6 {[%clk 0:00:14]} 34... Rb1+ {[%clk
0:00:29.2]} 35. Ke2 {[%clk 0:00:13.8]} 35... b5 {[%clk 0:00:29.6]} 36. Rxe6
{[%clk 0:00:12.4]} 36... b4 {[%clk 0:00:30.1]} 37. Ra6 {[%clk 0:00:12.2]} 37...
Nc3+ {[%clk 0:00:29.8]} 38. Kd3 {[%clk 0:00:12.7]} 38... Rb2 {[%clk 0:00:25.8]}
39. Ne5+ {[%clk 0:00:11.7]} 39... Kg7 {[%clk 0:00:24.8]} 40. Ra7+ {[%clk
0:00:11.7]} 40... Kg8 {[%clk 0:00:22.2]} 41. Ra8+ {[%clk 0:00:10.8]} 41... Kg7
{[%clk 0:00:21.5]} 42. Ra7+ {[%clk 0:00:11.2]} 42... Kg8 {[%clk 0:00:21.9]} 43.
Ra8+ {[%clk 0:00:11.5]} 43... Kg7 {[%clk 0:00:18.8]} 44. Ra7+ {[%clk 0:00:11.6]}
1/2-1/2

[Event "*** Titled Tuesday Blitz"]
[Site "Chess.com"]
[Date "2020.05.19"]
[Round "7"]
[White "AliKa2810"]
[Black "chessplayer9919"]
[Result "0-1"]
[WhiteElo "2616"]
[BlackElo "2511"]
[TimeControl "180+1"]
[EndTime "13:20:34 PDT"]
[Termination "chessplayer9919 won on time"]

1. d4 {[%clk 0:03:00.6]} 1... Nf6 {[%clk 0:02:59.6]} 2. c4 {[%clk 0:02:59.5]}
2... c5 {[%clk 0:02:59]} 3. d5 {[%clk 0:02:59.2]} 3... b5 {[%clk 0:02:59]} 4.
cxb5 {[%clk 0:02:59.6]} 4... a6 {[%clk 0:02:59.7]} 5. bxa6 {[%clk 0:03:00.5]}
5... g6 {[%clk 0:02:59.8]} 6. Nc3 {[%clk 0:03:01.2]} 6... Bg7 {[%clk 0:03:00.3]}
7. e4 {[%clk 0:03:01.7]} 7... O-O {[%clk 0:02:58.8]} 8. e5 {[%clk 0:03:02.3]}
8... Ne8 {[%clk 0:02:58.3]} 9. h4 {[%clk 0:03:02.8]} 9... d6 {[%clk 0:02:54]}
10. e6 {[%clk 0:02:37.2]} 10... fxe6 {[%clk 0:02:47.4]} 11. h5 {[%clk
0:02:37.7]} 11... gxh5 {[%clk 0:02:00.5]} 12. Qxh5 {[%clk 0:02:28.3]} 12... Nf6
{[%clk 0:01:59.4]} 13. Qh4 {[%clk 0:02:28.3]} 13... exd5 {[%clk 0:01:41.5]} 14.
Bd3 {[%clk 0:02:26.3]} 14... h5 {[%clk 0:01:24.5]} 15. Bg5 {[%clk 0:02:13.6]}
15... Nbd7 {[%clk 0:01:10]} 16. Nxd5 {[%clk 0:01:38.8]} 16... Ne5 {[%clk
0:00:41.5]} 17. Be4 {[%clk 0:01:15.7]} 17... Nxe4 {[%clk 0:00:21.9]} 18. Nxe7+
{[%clk 0:01:12.4]} 18... Kf7 {[%clk 0:00:21.8]} 19. Qxe4 {[%clk 0:01:02.3]}
19... Qa5+ {[%clk 0:00:21.9]} 20. Kd1 {[%clk 0:00:48]} 20... Qxa6 {[%clk
0:00:13.2]} 21. Nf3 {[%clk 0:00:12.1]} 21... Qd3+ {[%clk 0:00:13.2]} 22. Qxd3
{[%clk 0:00:11.5]} 22... Nxd3 {[%clk 0:00:14.1]} 23. Kc2 {[%clk 0:00:09.9]}
23... Nb4+ {[%clk 0:00:11.7]} 24. Kd2 {[%clk 0:00:09]} 24... Bg4 {[%clk
0:00:10.4]} 25. a3 {[%clk 0:00:06.6]} 25... Bxb2 {[%clk 0:00:08.4]} 26. Rae1
{[%clk 0:00:04.4]} 26... Rxa3 {[%clk 0:00:05.8]} 27. Bh4 {[%clk 0:00:04.3]}
27... Bc3+ {[%clk 0:00:06]} 28. Ke2 {[%clk 0:00:02.7]} 28... Bxe1 {[%clk
0:00:06.5]} 29. Rxe1 {[%clk 0:00:02.4]} 29... Re8 {[%clk 0:00:07]} 30. Kf1
{[%clk 0:00:02.4]} 30... Bxf3 {[%clk 0:00:07.6]} 31. gxf3 {[%clk 0:00:02.5]}
31... Rxf3 {[%clk 0:00:08.1]} 32. Re4 {[%clk 0:00:02.6]} 32... Nd5 {[%clk
0:00:05.7]} 0-1

[Event "*** Titled Tuesday Blitz"]
[Site "Chess.com"]
[Date "2020.05.19"]
[Round "7"]
[White "SerGo055"]
[Black "SchmakAttack"]
[Result "0-1"]
[WhiteElo "2566"]
[BlackElo "2455"]
[TimeControl "180+1"]
[EndTime "13:20:34 PDT"]
[Termination "SchmakAttack won by checkmate"]

1. d4 {[%clk 0:03:00.9]} 1... Nf6 {[%clk 0:02:58.3]} 2. Nf3 {[%clk 0:03:00.2]}
2... d5 {[%clk 0:02:57.7]} 3. c4 {[%clk 0:03:00.1]} 3... e6 {[%clk 0:02:54.3]}
4. Nc3 {[%clk 0:02:59.8]} 4... dxc4 {[%clk 0:02:47.5]} 5. e3 {[%clk 0:02:48]}
5... a6 {[%clk 0:02:41.5]} 6. Bxc4 {[%clk 0:02:44.4]} 6... b5 {[%clk 0:02:36.8]}
7. Be2 {[%clk 0:02:44.6]} 7... Bb7 {[%clk 0:02:36.7]} 8. O-O {[%clk 0:02:44.6]}
8... Nbd7 {[%clk 0:02:37.2]} 9. b3 {[%clk 0:02:44.9]} 9... c5 {[%clk 0:02:36.5]}
10. Bb2 {[%clk 0:02:44.7]} 10... Be7 {[%clk 0:02:36.8]} 11. Rc1 {[%clk
0:02:44.4]} 11... O-O {[%clk 0:02:36.7]} 12. Qc2 {[%clk 0:02:44.6]} 12... Rc8
{[%clk 0:02:35.5]} 13. Qb1 {[%clk 0:02:42.8]} 13... Qb6 {[%clk 0:02:28.2]} 14.
Rfd1 {[%clk 0:02:42.1]} 14... Rfd8 {[%clk 0:02:27.6]} 15. h3 {[%clk 0:02:11.8]}
15... h6 {[%clk 0:02:25.2]} 16. dxc5 {[%clk 0:02:03.7]} 16... Nxc5 {[%clk
0:02:22.8]} 17. Nd4 {[%clk 0:02:02.4]} 17... b4 {[%clk 0:01:37]} 18. Na4 {[%clk
0:02:00.4]} 18... Nxa4 {[%clk 0:01:35.8]} 19. bxa4 {[%clk 0:02:00.8]} 19... Qa5
{[%clk 0:01:33.9]} 20. Bc4 {[%clk 0:01:37.6]} 20... Be4 {[%clk 0:01:23.9]} 21.
Qa1 {[%clk 0:01:35.2]} 21... Qxa4 {[%clk 0:01:20.6]} 22. Bb3 {[%clk 0:01:33.9]}
22... Qa5 {[%clk 0:01:18.8]} 23. Rxc8 {[%clk 0:01:00.1]} 23... Rxc8 {[%clk
0:01:19.7]} 24. Nxe6 {[%clk 0:00:59.6]} 24... Qf5 {[%clk 0:00:37.3]} 25. Nd4
{[%clk 0:00:39.5]} 25... Qg5 {[%clk 0:00:37]} 26. f3 {[%clk 0:00:29.8]} 26...
Qxe3+ {[%clk 0:00:36.1]} 27. Kh1 {[%clk 0:00:30.1]} 27... Nh5 {[%clk 0:00:26.3]}
28. fxe4 {[%clk 0:00:21.2]} 28... Ng3+ {[%clk 0:00:26.3]} 29. Kh2 {[%clk
0:00:21.3]} 29... Bd6 {[%clk 0:00:26.9]} 30. Nf5 {[%clk 0:00:20.5]} 30... Nxf5+
{[%clk 0:00:25.2]} 31. e5 {[%clk 0:00:19.1]} 31... Qg3+ {[%clk 0:00:10.3]} 32.
Kh1 {[%clk 0:00:18.1]} 32... Bc5 {[%clk 0:00:09.8]} 33. Rf1 {[%clk 0:00:15.5]}
33... Ne3 {[%clk 0:00:09.7]} 34. Bxf7+ {[%clk 0:00:12.8]} 34... Kh8 {[%clk
0:00:07.3]} 35. Rg1 {[%clk 0:00:07.2]} 35... Ng4 {[%clk 0:00:07.5]} 36. hxg4
{[%clk 0:00:01.7]} 36... Qh4# {[%clk 0:00:07]} 0-1

[Event "*** Titled Tuesday Blitz"]
[Site "Chess.com"]
[Date "2020.05.19"]
[Round "7"]
[White "Onischuk_V"]
[Black "Sibelephant"]
[Result "1-0"]
[WhiteElo "2898"]
[BlackElo "3163"]
[TimeControl "180+1"]
[EndTime "13:20:35 PDT"]
[Termination "Onischuk_V won by resignation"]

1. e4 {[%clk 0:03:00.1]} 1... c5 {[%clk 0:02:59]} 2. Nf3 {[%clk 0:03:00.2]} 2...
d6 {[%clk 0:02:59.5]} 3. d4 {[%clk 0:02:58.6]} 3... cxd4 {[%clk 0:02:59.8]} 4.
Nxd4 {[%clk 0:02:59.3]} 4... Nf6 {[%clk 0:03:00.1]} 5. Nc3 {[%clk 0:03:00]} 5...
a6 {[%clk 0:03:00.8]} 6. a4 {[%clk 0:02:59.7]} 6... g6 {[%clk 0:03:00.3]} 7. g3
{[%clk 0:02:58.2]} 7... Bg7 {[%clk 0:02:59.3]} 8. Bg2 {[%clk 0:02:58.4]} 8...
O-O {[%clk 0:02:59.3]} 9. h3 {[%clk 0:02:58.4]} 9... Nc6 {[%clk 0:02:55.5]} 10.
Nb3 {[%clk 0:02:58.5]} 10... Be6 {[%clk 0:02:48.8]} 11. Nd5 {[%clk 0:02:57.8]}
11... Na5 {[%clk 0:02:00]} 12. Nd4 {[%clk 0:02:56.6]} 12... Bxd5 {[%clk
0:01:52.3]} 13. exd5 {[%clk 0:02:56.4]} 13... Qb6 {[%clk 0:01:51.7]} 14. c3
{[%clk 0:02:51.1]} 14... Nd7 {[%clk 0:01:51.2]} 15. O-O {[%clk 0:01:45.6]} 15...
Bxd4 {[%clk 0:01:46.8]} 16. Qxd4 {[%clk 0:01:42.4]} 16... Qxd4 {[%clk
0:01:44.4]} 17. cxd4 {[%clk 0:01:42]} 17... Nb3 {[%clk 0:01:27.4]} 18. Ra3
{[%clk 0:01:41.6]} 18... Nxd4 {[%clk 0:01:28]} 19. Bh6 {[%clk 0:01:36.9]} 19...
Rfc8 {[%clk 0:01:26.5]} 20. g4 {[%clk 0:01:27.6]} 20... Rc4 {[%clk 0:00:58.9]}
21. Re3 {[%clk 0:01:23.8]} 21... Re8 {[%clk 0:00:12.4]} 22. Rfe1 {[%clk
0:01:22.8]} 22... e5 {[%clk 0:00:05.5]} 23. dxe6 {[%clk 0:01:21]} 23... fxe6
{[%clk 0:00:05.8]} 24. Bd5 {[%clk 0:01:08.9]} 24... Rxa4 {[%clk 0:00:04.1]} 25.
Rxe6 {[%clk 0:00:55]} 25... Rxe6 {[%clk 0:00:04.6]} 26. Rxe6 {[%clk 0:00:53.3]}
26... Nxe6 {[%clk 0:00:03.2]} 27. Bxe6+ {[%clk 0:00:53.2]} 27... Kh8 {[%clk
0:00:03.8]} 28. Bxd7 {[%clk 0:00:53.7]} 28... Rb4 {[%clk 0:00:03.9]} 29. Bd2
{[%clk 0:00:44.9]} 29... Re4 {[%clk 0:00:04.3]} 30. Bc8 {[%clk 0:00:41.9]} 30...
Re7 {[%clk 0:00:04]} 31. Bb4 {[%clk 0:00:37.6]} 31... Rc7 {[%clk 0:00:04.1]} 32.
Be6 {[%clk 0:00:36.7]} 32... Kg7 {[%clk 0:00:04.4]} 33. Bxd6 {[%clk 0:00:36.7]}
33... Rc1+ {[%clk 0:00:02.4]} 34. Kg2 {[%clk 0:00:36.5]} 34... Kf6 {[%clk
0:00:03.1]} 35. Bb3 {[%clk 0:00:35.3]} 35... Rb1 {[%clk 0:00:02.8]} 36. Bb4
{[%clk 0:00:35.2]} 36... b5 {[%clk 0:00:03.2]} 37. Bc3+ {[%clk 0:00:31.6]} 37...
Ke7 {[%clk 0:00:03.4]} 38. f4 {[%clk 0:00:31.3]} 38... b4 {[%clk 0:00:03.7]} 39.
Bxb4+ {[%clk 0:00:30.9]} 39... Kd7 {[%clk 0:00:04.1]} 40. Bc3 {[%clk 0:00:30.8]}
40... Kc6 {[%clk 0:00:04.6]} 41. f5 {[%clk 0:00:30.9]} 41... gxf5 {[%clk
0:00:05.1]} 42. gxf5 {[%clk 0:00:31.2]} 42... Kd7 {[%clk 0:00:05.8]} 43. f6
{[%clk 0:00:31.2]} 1-0